bitfinex/quotes_ETHUSD_20240707
["timestamp","ask_amount","ask_price","bid_price","bid_amount"]
[1720379338418,3.0,2993.9,2993.7,0.938]
[1720379338741,1.15733253,2993.8,2993.7,0.938]
[1720379339042,1.22411833,2993.8,2993.7,0.938]
[1720379339442,1.70448826,2993.8,2993.7,0.938]
[1720379339736,1.70449043,2993.8,2993.7,0.938]
[1720379341045,1.63770938,2993.8,2993.7,0.938]
[1720379343779,1.63741918,2993.8,2993.7,0.938]
[1720379343934,2.7946787,2993.8,2993.7,0.938]
[1720379344134,1.63741918,2993.8,2993.7,0.938]
[1720379344686,1.63741918,2993.8,2993.7,4.068794]
[1720379344847,3.0,2994.8,2994.3,2.33773]
[1720379345186,3.0,2994.8,2994.7,0.938]
[1720379345342,4.0,2994.8,2994.7,0.938]
[1720379345938,0.0667858,2995.0,2994.7,0.938]
[1720379346238,0.0667858,2995.0,2994.9,0.938]
[1720379346433,3.0667858,2995.1,2994.9,0.938]
[1720379346634,3.0,2994.8,2994.5,2.33761]
[1720379346834,3.0,2994.8,2994.7,0.938]
[1720379354059,5.3622,2994.8,2994.7,0.938]
[1720379354269,3.0,2994.5,2993.9,2.4561]
[1720379354575,0.0667858,2994.4,2993.9,4.79414]
[1720379354775,0.0667858,2994.4,2994.3,0.938]
[1720379355817,5.73566438,2994.4,2993.2,2.4561]
[1720379356019,3.0,2993.8,2993.2,2.4561]
[1720379356165,0.0667858,2993.7,2993.3,2.33853]
[1720379356364,0.0667858,2993.7,2993.6,0.938]
[1720379357268,0.0667858,2993.7,2992.9,5.33881]
[1720379357463,0.0667858,2993.7,2993.6,0.938]
[1720379363582,3.0,2993.8,2993.6,0.938]
[1720379363773,0.0667858,2993.7,2993.6,0.938]
[1720379364170,3.0,2993.8,2993.6,3.3966]
[1720379364390,3.0,2993.8,2993.6,3.970107]
[1720379369036,3.0,2993.8,2993.6,1.511507]
[1720379369217,3.0,2993.8,2993.6,0.938]
[1720379376042,0.0667858,2993.7,2993.3,2.3318]
[1720379376256,0.0667858,2993.7,2993.6,0.938]
[1720379376544,3.0,2993.5,2993.0,5.3318]
[1720379376710,3.0,2993.5,2993.1,0.8450111]
[1720379376911,3.0,2993.5,2993.4,0.938]
[1720379381643,3.34983178,2993.5,2993.4,0.938]
[1720379382072,3.34983178,2993.5,2993.4,3.3074]
[1720379383333,0.34983178,2993.5,2993.4,5.64587]
[1720379383667,0.34983178,2993.5,2993.4,6.45100091]
[1720379384365,0.34983178,2993.5,2993.4,8.78947091]
[1720379387768,3.0667858,2994.4,2993.8,2.33816]
[1720379387994,3.0667858,2994.4,2994.3,0.938]
[1720379393059,3.0,2994.1,2993.9,2.3694]
[1720379393265,3.0,2994.1,2994.0,0.938]
[1720379397467,3.0,2994.1,2994.0,1.736358]
[1720379401285,3.0,2994.1,2994.0,0.938]
[1720379402388,3.0,2994.1,2993.6,2.3363]
[1720379402592,3.0,2994.1,2994.0,0.938]
[1720379402902,3.1088487,2994.1,2994.0,0.938]
[1720379403466,3.0,2994.1,2994.0,0.938]
[1720379405504,3.108861,2994.1,2994.0,0.938]
[1720379405665,3.0,2993.8,2993.6,2.3363]
[1720379405864,0.3108861,2994.1,2992.6,16.32261405]
[1720379405865,3.0,2993.5,2993.1,4.75786]
[1720379406065,3.0,2993.5,2993.4,0.938]
[1720379411709,3.0,2993.8,2993.4,0.938]
[1720379411874,3.0,2993.8,2993.7,0.938]
[1720379412213,3.0,2993.8,2993.7,1.27372]
[1720379412385,3.0,2993.8,2993.7,0.938]
[1720379412776,3.10887208,2993.8,2993.2,4.75782]
[1720379413021,0.1756573,2993.7,2993.2,4.75782]
[1720379413173,0.0667858,2993.7,2993.6,0.938]
[1720379413371,0.17566098,2993.7,2993.6,0.938]
[1720379413671,0.49322708,2993.7,2993.6,0.938]
[1720379414677,0.17566098,2993.7,2993.6,0.938]
[1720379415273,0.17566078,2993.7,2993.6,0.938]
[1720379415810,0.17565995,2993.7,2993.6,0.938]
[1720379417423,3.0,2993.4,2993.0,2.33874]
[1720379417632,3.0,2993.4,2993.3,0.938]
[1720379420741,3.0,2993.8,2993.3,3.59757]
[1720379421023,0.0667858,2994.1,2993.8,2.3319]
[1720379421024,3.0,2994.1,2993.8,2.3319]
[1720379421227,3.0,2994.1,2994.0,0.938]
[1720379421589,3.10892123,2994.1,2994.0,0.938]
[1720379421889,3.1089177,2994.1,2994.0,0.938]
[1720379422502,3.10891794,2994.1,2994.0,0.938]
[1720379424927,3.10892706,2994.1,2994.0,0.938]
[1720379425104,3.108927,2994.1,2994.0,0.938]
[1720379425439,3.10892663,2994.1,2994.0,0.938]
[1720379425998,3.0,2993.8,2993.3,2.3319]
[1720379426199,3.0,2993.8,2993.7,0.938]
[1720379426422,3.10891688,2993.8,2993.7,0.938]
[1720379428173,3.0,2993.8,2993.7,0.938]
[1720379428311,3.10890742,2993.8,2993.7,0.938]
[1720379431243,3.10892028,2993.8,2993.7,0.938]
[1720379431550,3.0,2993.8,2993.7,0.938]
[1720379432253,3.10891805,2993.8,2993.7,0.938]
[1720379432420,3.0,2993.8,2993.7,0.938]
[1720379434353,3.10891598,2993.8,2993.7,0.938]
[1720379434853,3.10891317,2993.8,2993.7,0.938]
[1720379435227,3.10891271,2993.8,2993.7,0.938]
[1720379436662,3.10890987,2993.8,2993.7,0.938]
[1720379438326,3.10890944,2993.8,2993.7,0.938]
[1720379440048,3.0,2993.5,2993.3,3.0]
[1720379440265,3.0,2993.5,2993.4,0.938]
[1720379441985,3.0,2993.5,2992.6,2.4606]
[1720379441986,3.0,2993.2,2992.6,2.4606]
[1720379442131,3.0,2993.2,2993.1,0.938]
[1720379442332,3.10894555,2993.2,2993.1,0.938]
[1720379444765,3.10894711,2993.2,2993.1,0.938]
[1720379444984,3.10895954,2993.2,2993.1,0.938]
[1720379445260,3.10895571,2993.2,2993.1,0.938]
[1720379446364,3.10897017,2993.2,2993.1,0.938]
[1720379448038,3.10897017,2993.2,2992.7,3.0]
[1720379448039,3.1089734,2993.2,2992.7,3.0]
[1720379448245,3.0,2992.8,2992.6,2.4606]
[1720379448449,3.0,2992.8,2992.7,0.938]
[1720379465340,3.0,2992.5,2992.0,7.64572]
[1720379465530,3.0,2992.5,2992.4,0.938]
[1720379468638,3.0,2992.5,2992.0,4.64572]
[1720379468840,3.0,2992.5,2992.4,0.938]
[1720379471744,3.34978777,2992.5,2992.4,0.938]
[1720379473565,3.0,2992.8,2992.4,3.2442]
[1720379473871,3.0,2992.8,2992.7,0.938]
[1720379474642,0.34977399,2993.1,2992.8,2.3062]
[1720379474863,3.0,2993.2,2993.0,0.938]
[1720379479258,0.34973087,2993.5,2993.2,2.33861]
[1720379479568,0.34973087,2993.5,2993.3,3.54917136]
[1720379479783,0.34973087,2993.5,2993.3,5.88764136]
[1720379479991,3.0,2993.8,2993.4,2.33846]
[1720379480315,3.0,2993.8,2993.7,0.938]
[1720379481395,0.34971691,2993.9,2993.7,0.938]
[1720379481601,0.34971691,2993.9,2993.7,1.265639]
[1720379481798,0.34971691,2993.9,2993.7,3.603869]
[1720379484620,3.34971691,2993.9,2993.7,3.603869]
[1720379484781,3.34971691,2993.9,2993.7,0.938]
[1720379486830,3.34971691,2993.9,2993.3,4.882881]
[1720379486831,3.34971691,2993.9,2993.8,0.938]
[1720379506367,3.34971691,2993.9,2993.3,4.64898]
[1720379506866,3.34971691,2993.9,2993.8,0.938]
[1720379509373,3.0,2993.9,2993.8,0.938]
[1720379511556,3.0,2993.6,2993.1,2.4053]
[1720379511757,3.0,2993.6,2993.5,0.938]
[1720379519275,3.10872293,2993.6,2993.5,0.938]
[1720379519473,3.0,2993.6,2993.5,0.938]
[1720379519654,3.10872301,2993.6,2993.5,0.938]
[1720379519851,3.0,2993.6,2993.5,0.938]
[1720379520075,3.41539869,2993.6,2993.1,2.4053]
[1720379520277,3.30667858,2993.6,2993.5,0.938]
[1720379520456,3.41539508,2993.6,2993.5,0.938]
[1720379522392,3.41539568,2993.6,2993.5,0.938]
[1720379522694,3.30667858,2993.6,2993.5,0.938]
[1720379522899,3.41539594,2993.6,2993.5,0.938]
[1720379523774,3.41539594,2993.6,2993.1,2.4053]
[1720379523974,0.51704275,2993.5,2992.7,5.3326]
[1720379524177,0.10871736,2993.4,2992.7,7.67161]
[1720379524362,0.17550316,2993.4,2993.3,0.938]
[1720379525388,0.10871736,2993.4,2993.3,0.938]
[1720379525697,0.10871736,2993.4,2992.7,5.3326]
[1720379525698,3.0,2993.1,2992.7,2.3326]
[1720379525852,3.0,2993.1,2993.0,0.938]
[1720379526054,3.10878907,2993.1,2993.0,0.938]
[1720379527103,3.0,2993.1,2993.0,0.938]
[1720379528605,3.10880141,2993.1,2993.0,0.938]
[1720379528806,3.17560149,2993.1,2993.0,0.938]
[1720379529299,3.0667858,2993.1,2993.0,0.938]
[1720379529516,3.17559349,2993.1,2993.0,0.938]
[1720379530122,3.0,2993.1,2993.0,0.938]
[1720379530595,3.0,2993.4,2993.0,1.26506]
[1720379530826,3.0,2993.4,2993.3,0.938]
[1720379531024,3.10871762,2993.4,2993.3,0.938]
[1720379532155,3.10871181,2993.4,2993.3,0.938]
[1720379532497,3.10871147,2993.4,2993.3,0.938]
[1720379533699,3.10871221,2993.4,2993.3,0.938]
[1720379535548,3.10871293,2993.4,2993.3,0.938]
[1720379538609,3.0,2993.4,2993.3,0.938]
[1720379538810,3.10871214,2993.4,2993.3,0.938]
[1720379540624,0.05827919,2993.8,2993.3,5.58805]
[1720379540820,2.15755996,2994.0,2993.6,3.2495]
[1720379540821,0.10871886,2993.7,2993.6,3.2495]
[1720379541023,0.10871886,2993.9,2993.6,3.2495]
[1720379541244,0.10871886,2993.8,2993.6,2.3115]
[1720379541411,0.10871886,2993.7,2993.6,2.3115]
[1720379541607,0.10872614,2993.9,2993.7,0.938]
[1720379541813,3.0,2993.7,2993.6,2.3115]
[1720379542013,3.10872989,2993.7,2993.6,3.2495]
[1720379542324,3.0,2993.7,2993.6,3.2495]
[1720379542529,3.10873289,2993.7,2993.6,3.2495]
[1720379543645,3.10872949,2993.7,2993.6,3.2495]
[1720379545413,3.10872376,2993.7,2993.6,3.2495]
[1720379547350,0.10872376,2993.7,2993.6,6.380452]
[1720379547509,0.10872376,2993.9,2993.6,6.380452]
[1720379547713,0.10872376,2993.8,2993.6,5.442452]
[1720379547952,0.10872376,2993.7,2993.6,5.442452]
[1720379548146,0.10872376,2993.9,2993.6,6.380452]
[1720379548350,0.10872376,2993.9,2993.8,0.938]
[1720379548596,0.10871606,2993.9,2993.8,0.938]
[1720379551951,0.10873296,2993.9,2993.8,0.938]
[1720379552332,0.10873338,2993.9,2993.8,0.938]
[1720379552954,3.0,2994.0,2993.8,0.938]
[1720379553627,0.10875529,2993.9,2993.8,0.938]
[1720379553833,0.10875538,2993.9,2993.8,0.938]
[1720379554034,3.0,2994.0,2993.8,0.938]
[1720379560775,3.0,2994.0,2993.8,3.27615]
[1720379563348,3.0,2994.0,2993.9,2.4274]
[1720379571569,3.0,2994.0,2993.8,3.27615]
[1720379574678,3.0667858,2994.6,2993.9,2.3795]
[1720379574876,3.0667858,2994.6,2994.4,0.938]
[1720379575807,3.0,2994.6,2994.4,0.938]
[1720379576715,3.0,2994.6,2994.0,2.33796]
[1720379577029,3.0,2994.6,2994.5,0.938]
[1720379579316,3.0,2994.3,2993.9,2.3795]
[1720379579640,3.0,2994.3,2994.2,0.938]
[1720379579941,3.0,2994.3,2993.5,4.59378]
[1720379579942,3.0,2994.0,2993.5,4.59378]
[1720379580092,3.0,2994.0,2993.9,0.938]
[1720379580294,3.3,2994.0,2993.3,2.2554]
[1720379580528,3.3,2994.0,2993.9,0.938]
[1720379580529,3.0,2994.0,2993.9,0.938]
[1720379582218,3.0,2993.7,2993.0,7.59414]
[1720379582419,3.0,2993.7,2993.6,0.938]
[1720379583905,3.0,2994.0,2993.6,3.1934]
[1720379584103,3.0,2994.0,2993.9,0.938]
[1720379587312,3.0,2994.0,2993.4,4.6634]
[1720379587513,3.0,2994.0,2993.9,0.938]
[1720379589613,3.10878749,2994.0,2993.9,0.938]
[1720379589814,3.41966624,2994.0,2993.9,0.938]
[1720379590632,3.31087875,2994.0,2993.9,0.938]
[1720379590829,3.41966458,2994.0,2993.9,0.938]
[1720379591201,3.1087868,2994.0,2993.9,0.938]
[1720379592294,3.10878657,2994.0,2993.9,0.938]
[1720379593008,3.10878657,2994.0,2993.1,10.1602739]
[1720379593009,3.0,2993.5,2993.1,9.4852739]
[1720379593191,3.0,2993.5,2993.4,0.938]
[1720379593392,3.10877509,2993.5,2993.4,0.938]
[1720379594009,3.10877474,2993.5,2993.4,0.938]
[1720379594332,3.0,2993.5,2993.4,0.938]
[1720379594499,3.1087753,2993.5,2993.4,0.938]
[1720379595323,3.0,2993.5,2993.4,0.938]
[1720379598534,3.0,2993.5,2993.4,3.263]
[1720379598721,3.0,2993.5,2993.4,3.823158]
[1720379602526,3.0,2993.5,2992.9,4.76679]
[1720379602845,3.0,2993.5,2993.4,0.938]
[1720379606569,2.2892,2994.2,2993.4,0.938]
[1720379606570,0.0667858,2994.2,2993.7,2.33817]
[1720379606770,0.0667858,2994.2,2994.1,0.938]
[1720379606918,3.0,2994.3,2994.1,0.938]
[1720379621090,0.0667858,2994.2,2994.1,0.938]
[1720379624620,0.17560774,2994.2,2994.1,0.938]
[1720379626286,3.0,2994.0,2993.8,2.4219]
[1720379626486,3.0,2994.0,2993.9,0.938]
[1720379634342,3.0,2994.3,2993.9,0.938]
[1720379634525,3.0,2994.3,2994.2,0.938]
[1720379639261,3.0,2994.3,2994.2,3.255]
[1720379642887,3.0,2994.3,2994.2,3.8143]
[1720379643197,3.0,2994.6,2994.2,3.8143]
[1720379643348,3.0,2994.6,2994.5,0.938]
[1720379646478,3.10881824,2994.6,2994.5,0.938]
[1720379647692,3.0,2994.6,2994.5,0.938]
[1720379649885,3.10882341,2994.6,2994.5,0.938]
[1720379651124,3.10882289,2994.6,2994.5,0.938]
[1720379652597,3.0,2994.6,2994.5,0.938]
[1720379652897,3.10881979,2994.6,2994.5,0.938]
[1720379655751,5.09417052,2995.3,2994.6,2.33746]
[1720379656056,3.0667858,2995.3,2995.2,0.938]
[1720379656239,3.0,2995.3,2995.2,0.938]
[1720379660888,3.0,2995.0,2994.6,2.4079]
[1720379661183,3.0,2995.0,2994.9,0.938]
[1720379662254,3.30667858,2995.0,2994.4,2.4079]
[1720379662509,0.0667858,2994.9,2994.4,2.4079]
[1720379662655,0.0667858,2994.9,2994.8,0.938]
[1720379663459,0.0667858,2994.9,2994.8,3.3459]
[1720379663965,0.0667858,2994.9,2994.8,0.938]
[1720379681532,3.0,2995.0,2994.8,0.938]
[1720379681735,3.0,2995.0,2994.8,3.2979]
[1720379685246,0.0667858,2995.3,2994.8,3.861442]
[1720379685459,3.0,2995.5,2995.2,0.938]
[1720379685622,3.0,2995.5,2995.4,0.938]
[1720379685823,3.10884751,2995.5,2995.4,0.938]
[1720379689016,3.10884134,2995.5,2995.4,0.938]
[1720379689466,3.0,2995.5,2995.4,0.938]
[1720379689761,3.10884205,2995.5,2995.4,0.938]
[1720379690664,3.0,2995.5,2995.4,0.938]
[1720379690857,3.10884119,2995.5,2995.4,0.938]
[1720379691313,3.10884018,2995.5,2995.4,0.938]
[1720379692434,3.10883908,2995.5,2995.4,0.938]
[1720379692627,3.10884072,2995.5,2995.4,0.938]
[1720379692853,3.0,2995.5,2995.4,0.938]
[1720379697269,3.0,2995.5,2995.4,3.64253]
[1720379697421,3.0,2995.9,2995.5,2.33682]
[1720379697622,3.0,2995.9,2995.8,3.3132]
[1720379700761,3.0,2995.9,2995.8,0.938]
[1720379705748,3.0,2995.9,2995.4,2.2589]
[1720379706085,3.0,2995.6,2995.2,2.2589]
[1720379706246,3.0,2995.6,2995.5,0.938]
[1720379706989,3.0,2995.6,2995.0,2.2589]
[1720379707163,3.0,2995.6,2995.5,0.938]
[1720379709846,0.0667858,2995.8,2995.0,2.2589]
[1720379709847,3.0,2995.2,2995.0,2.2589]
[1720379710195,3.0,2995.2,2995.1,0.938]
[1720379710576,3.0,2995.2,2994.6,2.2589]
[1720379710798,3.0,2995.2,2995.1,0.938]
[1720379715223,3.0,2994.9,2994.6,2.2589]
[1720379715425,3.0,2994.9,2994.8,0.938]
[1720379716811,3.0,2995.3,2994.8,3.1969]
[1720379717018,3.0,2995.3,2995.1,0.938]
[1720379718024,3.0,2995.3,2995.2,2.2589]
[1720379718425,3.0,2995.6,2995.2,2.2589]
[1720379718597,3.0,2995.6,2995.5,0.938]
[1720379720089,3.17566504,2995.6,2995.5,0.938]
[1720379721004,3.17566352,2995.6,2995.5,0.938]
[1720379721592,3.0,2995.2,2994.9,2.3645]
[1720379721846,3.0,2995.2,2995.1,0.938]
[1720379722002,3.3,2995.2,2994.6,2.3645]
[1720379722329,3.0,2995.2,2995.1,0.938]
[1720379722639,3.10887264,2995.2,2995.1,0.938]
[1720379723105,3.0,2995.2,2995.1,0.938]
[1720379723286,3.10887251,2995.2,2995.1,0.938]
[1720379723996,3.41975976,2995.2,2995.1,0.938]
[1720379724196,3.31088725,2995.2,2995.1,0.938]
[1720379724433,3.41975693,2995.2,2995.1,0.938]
[1720379726236,3.0,2994.9,2994.6,2.3645]
[1720379726442,3.0,2994.9,2994.8,0.938]
[1720379726928,3.0,2994.9,2994.4,2.33764]
[1720379727135,3.0,2994.9,2994.8,0.938]
[1720379731229,2.4435,2995.4,2994.8,0.938]
[1720379731230,0.0667858,2995.4,2994.8,3.3025]
[1720379731429,3.0,2995.3,2995.2,0.938]
[1720379736910,3.34967713,2995.3,2995.2,0.938]
[1720379746128,0.34967713,2995.3,2995.2,0.938]
[1720379746330,3.0,2995.9,2995.5,2.33677]
[1720379746527,3.0,2995.9,2995.8,0.938]
[1720379748737,3.0,2995.9,2995.4,4.79984]
[1720379749072,3.0,2995.9,2995.8,0.938]
[1720379754881,3.0,2995.9,2995.4,4.79986]
[1720379755053,3.0,2995.9,2995.8,0.938]
[1720379756604,3.10882316,2995.9,2995.8,0.938]
[1720379756965,3.0,2995.9,2995.8,0.938]
[1720379757166,3.10883274,2995.9,2995.8,0.938]
[1720379757400,3.0,2995.9,2995.8,0.938]
[1720379758387,3.3,2995.9,2995.8,0.938]
[1720379759102,3.40885106,2995.9,2995.8,0.938]
[1720379759264,3.3,2995.9,2995.8,0.938]
[1720379759876,3.40886516,2995.9,2995.8,0.938]
[1720379760092,3.3,2995.9,2995.8,0.938]
[1720379761827,3.0,2995.9,2995.8,0.938]
[1720379763120,3.0667858,2996.5,2995.8,0.938]
[1720379763334,3.0,2996.2,2995.9,2.3819]
[1720379763483,3.0,2996.2,2996.1,0.938]
[1720379763893,3.0,2996.2,2996.1,1.26999]
[1720379764093,3.0,2996.2,2996.1,0.938]
[1720379766489,3.34960026,2996.6,2996.1,0.938]
[1720379766733,3.0,2996.6,2996.4,3.4158]
[1720379767714,3.0,2996.6,2996.4,5.75193]
[1720379768710,3.0,2996.6,2996.5,2.244]
[1720379768911,3.0,2996.6,2996.5,2.949793]
[1720379769312,3.0,2997.0,2996.6,2.33597]
[1720379769636,3.0,2997.1,2996.9,2.244]
[1720379771619,3.0,2997.1,2996.5,0.75353246]
[1720379771816,0.0667858,2997.0,2996.9,2.244]
[1720379772027,3.0,2997.1,2996.9,2.244]
[1720379773839,3.0,2997.1,2997.0,2.4012]
[1720379774846,3.0,2997.4,2997.0,2.4012]
[1720379775018,3.0,2997.4,2997.3,2.244]
[1720379775415,0.78947209,2997.7,2997.3,2.244]
[1720379775416,3.44,2997.7,2997.3,2.244]
[1720379776008,3.44,2997.7,2997.3,2.30895977]
[1720379776208,3.44,2997.7,2997.4,0.69798298]
[1720379776908,3.0,2997.4,2997.3,2.244]
[1720379788625,3.0667858,2997.4,2997.3,2.244]
[1720379790864,3.0,2996.6,2996.2,7.1602739]
[1720379791071,3.0,2996.6,2996.5,2.244]
[1720379793175,3.0667858,2996.6,2996.5,2.244]
[1720379793582,0.0667858,2996.6,2996.1,2.244]
[1720379793879,3.0,2996.2,2996.1,2.244]
[1720379802253,5.3903,2996.2,2996.1,2.244]
[1720379802453,5.92933,2996.2,2996.1,2.244]
[1720379803082,3.0,2995.8,2995.7,2.244]
[1720379819107,3.0,2995.3,2995.0,2.4752]
[1720379819404,3.0,2995.3,2995.2,2.244]
[1720379819603,3.0,2995.3,2995.2,2.71592]
[1720379822684,3.0,2995.3,2995.0,2.4752]
[1720379822885,3.0,2995.3,2995.2,0.936]
[1720379832877,3.0,2994.9,2994.7,2.3609]
[1720379833207,3.0,2994.9,2994.8,0.936]
[1720379835412,3.0,2994.9,2994.5,2.3609]
[1720379835413,3.0,2994.6,2994.1,2.3609]
[1720379835617,3.0,2994.6,2994.1,3.54682039]
[1720379835618,0.0667858,2994.5,2994.1,3.54682039]
[1720379835786,0.0667858,2994.5,2994.4,0.936]
[1720379839218,0.0667858,2994.5,2993.5,2.33835]
[1720379839219,3.0,2993.9,2993.7,2.4911]
[1720379839519,3.0,2993.9,2993.8,0.936]
[1720379840089,3.0,2993.9,2993.8,1.27871]
[1720379841523,3.0,2993.9,2993.8,0.936]
[1720379847427,3.0,2993.9,2993.7,2.4911]
[1720379847754,3.0,2993.9,2993.8,0.936]
[1720379853869,0.0667858,2994.1,2993.1,2.33866]
[1720379853870,3.0,2993.5,2993.1,2.3138]
[1720379854171,3.0,2993.5,2993.4,0.936]
[1720379855446,3.0,2993.2,2993.1,2.3138]
[1720379855780,3.0,2993.2,2993.1,0.936]
[1720379856134,3.0,2992.9,2992.5,2.3138]
[1720379856339,3.0,2992.9,2992.8,0.936]
[1720379861044,3.0,2993.4,2992.9,2.3324]
[1720379861254,3.0,2993.4,2993.2,0.936]
[1720379862554,3.0,2993.6,2993.3,2.3324]
[1720379862898,3.0,2993.6,2993.5,0.936]
[1720379864148,0.0667858,2994.1,2992.8,4.67129]
[1720379864149,3.0,2993.3,2992.8,4.67129]
[1720379864356,2.2967,2993.8,2992.8,4.67129]
[1720379864357,3.0,2993.0,2992.8,2.3324]
[1720379864610,3.0,2993.0,2992.9,0.936]
[1720379865983,3.0,2993.0,2992.5,4.67156]
[1720379866284,3.0,2993.0,2992.9,0.936]
[1720379866777,3.0,2993.0,2992.9,2.25]
[1720379872186,3.0,2993.3,2992.9,2.475]
[1720379872364,3.0,2993.3,2993.2,2.25]
[1720379876180,2.2788,2993.6,2992.8,2.25]
[1720379876181,3.0,2992.9,2992.8,2.25]
[1720379882735,7.37,2993.7,2992.8,2.25]
[1720379882736,3.0,2993.2,2992.8,2.25]
[1720379882895,3.0,2993.4,2993.1,2.25]
[1720379884196,3.0,2993.7,2993.1,2.25]
[1720379884503,9.6969,2994.2,2993.5,4.58839]
[1720379884504,3.0,2994.0,2993.5,4.58839]
[1720379884697,3.0,2994.0,2993.9,2.25]
[1720379885391,3.0,2993.6,2993.5,2.25]
[1720379886026,3.0,2993.3,2993.0,2.3863]
[1720379886326,3.0,2993.3,2993.1,2.25]
[1720379888094,3.0,2993.0,2992.6,4.72537]
[1720379888298,3.0,2993.0,2992.9,2.25]
[1720379895720,3.10902145,2993.0,2992.9,2.25]
[1720379895957,3.0,2993.0,2992.9,2.25]
[1720379897249,3.0,2993.3,2992.9,2.25]
[1720379897422,3.0,2993.0,2992.9,2.25]
[1720379898122,3.0,2993.0,2992.9,2.947527]
[1720379901059,3.0,2993.3,2992.9,7.625177]
[1720379901228,3.0,2993.3,2993.2,2.25]
[1720379905742,3.1090614,2993.3,2993.2,2.25]
[1720379906785,3.0,2993.3,2993.2,2.25]
[1720379906937,3.10906064,2993.3,2993.2,2.25]
[1720379907971,3.10905343,2993.3,2993.2,2.25]
[1720379909870,3.42663735,2993.3,2993.2,2.25]
[1720379910230,3.0,2992.9,2992.8,2.25]
[1720379910877,3.10905179,2992.9,2992.8,2.25]
[1720379911078,3.0,2992.9,2992.8,2.25]
[1720379911302,3.10905811,2992.9,2992.8,2.25]
[1720379911794,3.45849548,2992.9,2992.8,2.25]
[1720379911938,3.80434503,2992.9,2992.8,2.25]
[1720379912862,3.80433403,2992.9,2992.8,2.25]
[1720379914379,3.69529233,2992.9,2992.8,2.25]
[1720379914591,3.80432978,2992.9,2992.8,2.25]
[1720379914932,3.45848023,2992.9,2992.8,2.25]
[1720379916380,3.34944278,2992.9,2992.8,2.25]
[1720379916580,3.34944278,2992.9,2992.4,2.33919]
[1720379916786,3.34944278,2992.9,2992.8,0.937]
[1720379918645,3.34944278,2992.9,2992.8,2.25]
[1720379921442,3.68438706,2992.9,2992.8,2.25]
[1720379923379,3.34944278,2992.9,2992.8,2.25]
[1720379925183,3.45849845,2992.9,2992.8,2.25]
[1720379927684,3.45849655,2992.9,2992.8,2.25]
[1720379928078,3.0,2992.5,2992.4,2.25]
[1720379929062,3.0,2992.5,2992.0,4.6879]
[1720379929063,3.0,2992.2,2992.0,4.6879]
[1720379932063,3.0,2992.2,2992.1,2.4379]
[1720379932255,3.0,2992.5,2992.1,2.4379]
[1720379932460,3.0,2992.5,2992.4,2.25]
[1720379940652,0.78939527,2992.6,2992.4,3.3707]
[1720379942239,0.78939527,2992.6,2992.5,0.937]
[1720379944136,1.1683348,2992.6,2992.5,0.937]
[1720379944703,3.0,2992.2,2991.9,2.4337]
[1720379945043,3.0,2992.2,2992.1,0.937]
[1720379945934,3.0,2991.9,2991.6,2.4337]
[1720379946233,3.0,2991.9,2991.8,0.937]
[1720379957520,3.34941686,2992.2,2991.8,1.27407]
[1720379957717,3.34941686,2992.2,2992.1,0.937]
[1720379958950,0.34941686,2992.2,2992.1,3.3707]
[1720379959154,3.0,2992.5,2992.4,2.4739]
[1720379959348,3.0,2992.5,2992.4,3.4109]
[1720379959548,3.0,2992.5,2992.4,3.9926056]
[1720379960356,3.0,2992.5,2992.4,3.4109]
[1720379960857,3.0,2992.5,2992.4,0.937]
[1720379964654,3.0,2992.5,2992.4,3.2922]
[1720379965357,0.44,2992.6,2992.4,5.63141]
[1720379965556,0.44,2992.6,2992.5,0.06675389]
[1720379965741,0.44,2992.6,2992.5,2.97575728]
[1720379966551,0.44,2992.6,2992.5,5.22575728]
[1720379966953,0.44,2992.6,2992.5,5.15900339]
[1720379969357,0.44,2992.6,2992.5,5.21508383]
[1720379969567,0.44,2992.6,2992.5,5.15900339]
[1720379970463,0.44,2992.6,2992.5,2.81982339]
[1720379970670,0.44,2992.6,2992.5,2.25]
[1720379972981,0.44,2992.6,2992.5,6.94438]
[1720379973183,0.0667858,2993.3,2992.8,2.3552]
[1720379973184,3.0667858,2993.3,2992.8,2.3552]
[1720379973481,3.0,2993.6,2993.2,4.6052]
[1720379973682,0.10920413,2993.5,2993.2,4.6052]
[1720379973841,3.0,2993.6,2993.2,4.6052]
[1720379975405,3.30667858,2993.6,2993.2,2.25]
[1720379981420,3.0,2993.0,2992.7,2.419]
[1720379981709,3.0,2993.3,2992.9,2.25]
[1720379981919,3.0,2993.3,2993.2,2.25]
[1720379982864,3.0,2993.6,2993.2,4.669]
[1720379983064,3.0,2993.6,2993.3,2.40524889]
[1720379983363,11.94,2994.5,2993.2,4.669]